bitfinex/quotes_SOLUSD_20260228
["timestamp","ask_amount","ask_price","bid_price","bid_amount"]
[1772309328955,2.61177605,82.259,82.226,2.51942083]
[1772309329158,2.61177605,82.249,82.222,12.16219503]
[1772309329360,2.61177605,82.239,82.212,2.51942083]
[1772309329658,2.61177605,82.239,82.213,12.16352644]
[1772309329864,2.61177605,82.239,82.214,2.51942083]
[1772309330476,2.61177605,82.239,82.215,12.16323055]
[1772309330780,2.61177605,82.239,82.215,14.68265138]
[1772309334067,5.91185412,82.24,82.19,45.28563529]
[1772309334068,2.61177605,82.229,82.201,2.51942083]
[1772309335559,2.61177605,82.229,82.203,14.68428881]
[1772309336588,2.61177605,82.227,82.203,14.68428881]
[1772309337163,14.77249014,82.233,82.204,2.51942083]
[1772309337682,14.77249014,82.233,82.2,5.91185412]
[1772309337683,2.61177605,82.232,82.206,2.51942083]
[1772309340575,2.61177605,82.232,82.207,14.68383505]
[1772309340786,2.61177605,82.232,82.207,12.16441422]
[1772309340979,2.61177605,82.23,82.208,2.51942083]
[1772309341178,2.61177605,82.23,82.204,2.51942083]
[1772309341688,2.61177605,82.219,82.185,2.51942083]
[1772309342787,2.61177605,82.217,82.186,12.16752244]
[1772309344688,12.16204221,82.224,82.19,5.91185412]
[1772309344890,2.61177605,82.236,82.211,2.51942083]
[1772309345074,12.16027239,82.235,82.211,2.51942083]
[1772309345387,2.61177605,82.236,82.211,2.51942083]
[1772309345590,3.69383402,82.257,82.221,2.51942083]
[1772309345591,2.61177605,82.248,82.221,2.51942083]
[1772309345986,2.61177605,82.256,82.221,2.51942083]
[1772309346292,0.1,82.35,82.241,2.51942083]
[1772309346293,2.61177605,82.265,82.241,2.51942083]
[1772309346997,2.61177605,82.263,82.241,2.51942083]
[1772309347367,6.01185412,82.27,82.241,2.51942083]
[1772309347368,2.71177605,82.27,82.241,2.51942083]
[1772309347572,2.71177605,82.27,82.251,2.51942083]
[1772309349793,0.1,82.27,82.252,14.67717991]
[1772309350970,2.71177605,82.27,82.24,5.91185412]
[1772309351169,2.71177605,82.27,82.241,2.51942083]
[1772309353980,0.1,82.27,82.241,2.51942083]
[1772309354176,0.1,82.27,82.26,5.91185412]
[1772309354683,0.1,82.27,82.255,2.51942083]
[1772309355497,2.61177605,82.286,82.261,2.51942083]
[1772309357801,2.61177605,82.286,82.263,2.62980595]
[1772309361200,2.61177605,82.286,82.265,2.62980595]
[1772309361500,2.55604716,82.284,82.251,2.62980595]
[1772309361993,2.55604716,82.284,82.26,5.91185412]
[1772309362400,2.55604716,82.284,82.26,8.54166007]
[1772309362780,2.55604716,82.284,82.261,2.62980595]
[1772309363507,2.55604716,82.284,82.262,12.15628115]
[1772309364988,2.55604716,82.284,82.261,2.62980595]
[1772309365183,2.55604716,82.284,82.261,14.78621304]
[1772309365579,2.55604716,82.302,82.272,2.62980595]
[1772309365891,6.00492838,82.34,82.292,2.62980595]
[1772309366091,0.1,82.34,82.311,2.62980595]
[1772309367392,12.1449131,82.339,82.301,2.62980595]
[1772309367587,42.50719585,82.339,82.301,2.62980595]
[1772309367788,2.55604716,82.338,82.303,2.62980595]
[1772309369482,6.00492838,82.34,82.292,12.15181637]
[1772309369483,2.55604716,82.327,82.292,12.15181637]
[1772309370394,2.55604716,82.327,82.293,2.62980595]
[1772309372503,2.55604716,82.319,82.281,2.62980595]
[1772309372706,2.55604716,82.334,82.282,2.62980595]
[1772309372887,2.55604716,82.334,82.301,2.62980595]
[1772309373791,2.55604716,82.333,82.301,2.62980595]
[1772309375207,2.55604716,82.333,82.302,12.15037301]
[1772309375415,2.55604716,82.329,82.303,2.62980595]
[1772309377312,2.55604716,82.328,82.303,2.62980595]
[1772309377897,2.55604716,82.328,82.305,2.62980595]
[1772309377898,2.55604716,82.327,82.305,2.62980595]
[1772309378099,12.1465358,82.328,82.305,2.62980595]
[1772309378409,2.55604716,82.327,82.305,2.62980595]
[1772309380113,2.55604716,82.334,82.305,2.62980595]
[1772309380304,2.55604716,82.329,82.3,2.62980595]
[1772309381319,12.1465358,82.328,82.301,2.62980595]
[1772309381518,2.55604716,82.327,82.301,2.62980595]
[1772309382921,2.55604716,82.327,82.302,2.62980595]
[1772309383616,12.1465358,82.328,82.302,2.62980595]
[1772309383817,0.1,82.36,82.322,2.62980595]
[1772309384145,0.1,82.36,82.32,11.80985676]
[1772309384146,0.1,82.36,82.341,2.62980595]
[1772309384336,0.1,82.38,82.351,2.60826707]
[1772309384622,0.1,82.4,82.371,2.60826707]
[1772309384792,0.1,82.4,82.381,2.60826707]
[1772309385215,0.1,82.4,82.39,18.37589501]
[1772309385421,2.67982896,82.418,82.392,2.60826707]
[1772309385603,2.67982896,82.416,82.384,2.60826707]
[1772309386110,2.67982896,82.416,82.37,15.76762794]
[1772309386111,2.67982896,82.416,82.386,2.60826707]
[1772309386314,2.67982896,82.423,82.4,18.21664364]
[1772309386506,2.67982896,82.423,82.401,2.4490157]
[1772309387301,2.67982896,82.423,82.394,2.4490157]
[1772309387527,2.56948401,82.41,82.38,15.76762794]
[1772309387704,2.46948401,82.409,82.374,2.4490157]
[1772309387909,2.46948401,82.409,82.38,15.76762794]
[1772309388530,2.46948401,82.409,82.381,2.4490157]
[1772309389525,2.46948401,82.407,82.381,2.4490157]
[1772309390233,2.46948401,82.407,82.382,14.58758966]
[1772309391230,2.46948401,82.407,82.383,2.4490157]
[1772309391836,2.46948401,82.407,82.39,15.76762794]
[1772309392009,0.1,82.41,82.39,15.76762794]
[1772309393938,0.1,82.41,82.39,18.21664364]
[1772309394824,2.46948401,82.409,82.38,15.76762794]
[1772309395130,2.46948401,82.409,82.381,2.4490157]
[1772309396331,2.46948401,82.409,82.382,2.4490157]
[1772309396730,0.1,82.41,82.401,2.4490157]
[1772309397824,2.46948401,82.424,82.401,2.4490157]
[1772309398625,2.46948401,82.424,82.4,15.76762794]
[1772309398934,12.13224143,82.425,82.38,15.76762794]
[1772309398935,2.46948401,82.409,82.38,15.76762794]
[1772309399126,2.46948401,82.409,82.378,2.4490157]
[1772309399327,2.46948401,82.409,82.381,2.4490157]
[1772309399930,2.46948401,82.407,82.382,2.4490157]
[1772309400511,2.46948401,82.438,82.401,2.4490157]
[1772309400717,2.46948401,82.437,82.411,2.4490157]
[1772309400912,12.12970955,82.443,82.42,15.76762794]
[1772309401123,12.12970955,82.443,82.421,2.4490157]
[1772309401435,2.46948401,82.442,82.41,15.76762794]
[1772309401732,2.46948401,82.429,82.4,15.76762794]
[1772309401939,2.46948401,82.436,82.401,12.13577505]
[1772309402139,15.86762794,82.45,82.42,15.76762794]
[1772309402140,2.46948401,82.449,82.42,15.76762794]
[1772309402350,14.59819387,82.449,82.42,15.76762794]
[1772309403427,14.59819387,82.449,82.421,2.4490157]
[1772309403629,0.1,82.45,82.431,2.4490157]
[1772309403927,34.00831053,82.469,82.441,2.4490157]
[1772309403928,3.69383402,82.469,82.441,2.4490157]
[1772309404133,3.69383402,82.469,82.45,15.76762794]
[1772309404339,2.46948401,82.47,82.443,2.4490157]
[1772309404520,14.59413728,82.477,82.443,2.4490157]
[1772309404720,14.59413728,82.477,82.451,2.4490157]
[1772309404934,0.1,82.48,82.451,2.4490157]
[1772309405222,0.1,82.48,82.461,2.4490157]
[1772309405917,0.1,82.48,82.47,15.76762794]
[1772309406236,2.46948401,82.479,82.45,15.76762794]
[1772309406421,2.46948401,82.479,82.446,2.4490157]
[1772309406822,2.46948401,82.479,82.441,2.4490157]
[1772309407030,2.46948401,82.479,82.442,2.4490157]
[1772309407342,2.46948401,82.479,82.451,2.4490157]
[1772309407552,0.1,82.48,82.461,2.4490157]
[1772309407755,0.1,82.49,82.471,2.4490157]
[1772309407919,0.1,82.49,82.482,2.4490157]
[1772309408635,2.46948401,82.505,82.482,2.4490157]
[1772309408835,2.46948401,82.499,82.461,2.4490157]
[1772309409144,2.46948401,82.489,82.452,2.4490157]
[1772309409348,2.46948401,82.479,82.443,2.4490157]
[1772309409822,2.46948401,82.477,82.443,2.4490157]
[1772309410021,2.46948401,82.469,82.443,2.4490157]
[1772309411222,2.46948401,82.483,82.451,2.4490157]
[1772309411626,2.46948401,82.483,82.443,12.12949672]
[1772309411627,2.46948401,82.493,82.461,2.4490157]
[1772309411838,14.59180479,82.493,82.462,12.12679779]
[1772309412033,14.59180479,82.493,82.47,15.76762794]
[1772309412433,2.46948401,82.509,82.471,2.4490157]
[1772309412638,2.46948401,82.509,82.477,2.4490157]
[1772309413022,2.46948401,82.508,82.477,2.4490157]
[1772309413423,2.46948401,82.489,82.446,2.4490157]
[1772309413634,2.46948401,82.489,82.451,2.4490157]
[1772309414343,0.1,82.51,82.48,15.76762794]
[1772309414548,2.46948401,82.527,82.5,18.21664364]
[1772309415046,2.46948401,82.519,82.484,2.4490157]
[1772309415238,12.11842121,82.519,82.491,2.4490157]
[1772309416039,2.46948401,82.518,82.482,2.4490157]
[1772309416350,2.46948401,82.518,82.491,2.4490157]
[1772309416550,12.11871493,82.517,82.491,2.4490157]
[1772309416928,0.1,82.52,82.493,2.48222814]
[1772309417144,0.1,82.52,82.501,2.48222814]
[1772309417349,2.62680682,82.548,82.511,2.48222814]
[1772309417645,12.11401712,82.549,82.504,2.48222814]
[1772309417646,2.62680682,82.539,82.504,2.48222814]
[1772309418640,2.62680682,82.537,82.506,2.48222814]
[1772309419250,2.62680682,82.537,82.501,2.48222814]
[1772309419450,2.62680682,82.537,82.49,18.24985608]
[1772309419628,2.62680682,82.509,82.474,12.12503334]
[1772309419954,2.62680682,82.509,82.475,2.48222814]
[1772309420454,2.62680682,82.526,82.491,2.48222814]
[1772309420758,14.74434695,82.525,82.492,12.12238762]
[1772309420940,2.62680682,82.524,82.493,2.48222814]
[1772309421339,2.62680682,82.524,82.5,18.24985608]
[1772309421538,2.62680682,82.519,82.477,2.48222814]
[1772309421744,2.62680682,82.519,82.481,2.48222814]
[1772309422558,2.62680682,82.519,82.491,2.48222814]
[1772309422559,12.11856806,82.518,82.491,2.48222814]
[1772309422852,14.74537488,82.518,82.491,2.48222814]
[1772309423058,2.62680682,82.517,82.491,2.48222814]
[1772309423552,30.29091393,82.533,82.491,2.48222814]
[1772309423553,12.11787932,82.523,82.492,2.48222814]
[1772309424157,12.11789523,82.523,82.492,2.48222814]
[1772309424538,12.11533801,82.54,82.511,2.48222814]
[1772309424938,12.11470876,82.545,82.521,2.48222814]
[1772309425161,12.1115229,82.566,82.531,2.48222814]
[1772309425479,12.11108285,82.569,82.541,2.48222814]
[1772309425764,14.73788967,82.569,82.541,2.48222814]
[1772309425971,2.62680682,82.568,82.531,2.48222814]
[1772309426144,12.11108285,82.569,82.531,2.48222814]
[1772309426345,2.62680682,82.568,82.531,2.48222814]
[1772309426563,0.1,82.57,82.543,2.48222814]
[1772309427147,0.1,82.57,82.551,2.48222814]
[1772309427863,0.1,82.59,82.561,2.48222814]
[1772309428065,15.80513204,82.6,82.542,12.11504446]
[1772309428066,0.1,82.6,82.571,2.48222814]
[1772309428365,2.62680682,82.589,82.55,15.70513204]
[1772309428945,2.62680682,82.589,82.551,12.11372363]
[1772309429145,2.62680682,82.588,82.551,12.11372363]
[1772309429345,2.62680682,82.569,82.533,12.11624742]
[1772309429760,2.62680682,82.578,82.54,15.70513204]
[1772309430154,2.62680682,82.559,82.521,2.48222814]
[1772309430863,15.70513204,82.54,82.512,2.48222814]
[1772309431166,2.62680682,82.549,82.512,2.48222814]
[1772309431965,2.62680682,82.549,82.51,15.70513204]
[1772309431966,2.62680682,82.549,82.521,2.48222814]
[1772309433072,2.62680682,82.547,82.513,2.48222814]
[1772309434758,2.62680682,82.539,82.513,2.48222814]
[1772309435381,12.11563158,82.538,82.513,2.48222814]
[1772309435748,2.62680682,82.537,82.504,14.60274282]
[1772309436062,2.62680682,82.529,82.491,14.60476271]
[1772309436255,2.62680682,82.519,82.491,2.48222814]
[1772309436777,2.62680682,82.509,82.483,2.48222814]
[1772309437178,12.12003684,82.508,82.483,2.48222814]
[1772309437672,2.62680682,82.509,82.483,14.6058951]
[1772309437976,2.62680682,82.507,82.483,2.48222814]
[1772309438349,12.12003684,82.508,82.439,9.0546959]
[1772309438350,2.62680682,82.499,82.466,2.48222814]
[1772309438560,2.62680682,82.499,82.467,2.48222814]
[1772309438956,2.62680682,82.489,82.458,2.48222814]
[1772309439252,2.62680682,82.479,82.45,2.48222814]
[1772309439458,2.62680682,82.469,82.431,2.48222814]
[1772309439661,42.4252709,82.498,82.431,14.61358648]
[1772309439662,2.62680682,82.459,82.431,14.61358648]
[1772309441376,12.12738606,82.458,82.431,14.61358648]
[1772309441568,15.70513204,82.44,82.413,2.48222814]
[1772309441875,15.70513204,82.44,82.412,2.48222814]
[1772309442372,2.62680682,82.439,82.412,2.48222814]
[1772309442676,18.33193886,82.42,82.393,14.61913952]
[1772309442871,2.62680682,82.429,82.394,2.48222814]
[1772309443069,2.62680682,82.427,82.395,14.61888691]
[1772309443277,2.62680682,82.427,82.396,2.48222814]
[1772309445262,15.70513204,82.42,82.396,2.48222814]
[1772309445978,14.74140102,82.451,82.401,2.5701693]
[1772309446282,2.61298536,82.439,82.401,2.5701693]
[1772309447183,12.13081347,82.435,82.403,2.45227184]
[1772309447368,2.61298536,82.439,82.411,2.45227184]
[1772309447979,2.53118095,82.447,82.411,2.45227184]
[1772309448181,15.70513204,82.44,82.411,2.45227184]
[1772309448880,15.70513204,82.43,82.403,2.45227184]
[1772309449183,15.70513204,82.43,82.397,2.45227184]
[1772309449355,2.53118095,82.431,82.4,15.70513204]
[1772309449555,2.53118095,82.431,82.401,2.45227184]
[1772309449876,15.70513204,82.43,82.401,2.45227184]
[1772309450576,12.12903489,82.447,82.411,2.45227184]
[1772309450775,15.70513204,82.45,82.411,2.45227184]
[1772309451367,0.97869998,82.486,82.386,60.68958971]
[1772309451368,15.70513204,82.46,82.421,2.45227184]
[1772309451708,12.12723899,82.459,82.421,2.45227184]
[1772309451880,15.70513204,82.47,82.431,2.45227184]
[1772309452985,12.12576847,82.469,82.433,2.45227184]
[1772309453184,12.12576847,82.469,82.412,60.6707761]
[1772309453185,15.70513204,82.45,82.425,2.45227184]
[1772309453771,15.70513204,82.45,82.425,14.58450371]
[1772309454084,15.70513204,82.45,82.426,2.45227184]
[1772309454482,17.67301599,82.46,82.426,2.45227184]
[1772309454682,15.70513204,82.46,82.426,2.45227184]
[1772309455273,15.70513204,82.46,82.428,2.45227184]
[1772309455685,15.70513204,82.48,82.441,2.45227184]
[1772309455991,1.961268,82.487,82.451,2.45227184]
[1772309456978,12.12341637,82.485,82.453,2.45227184]
[1772309458192,12.12341637,82.485,82.455,2.45227184]
[1772309460083,12.12371034,82.483,82.455,2.45227184]
[1772309460477,15.70513204,82.47,82.446,2.45227184]
[1772309460676,15.70513204,82.48,82.446,2.45227184]
[1772309460877,12.12226456,82.493,82.451,2.45227184]
[1772309461071,12.12226456,82.493,82.461,2.45227184]
[1772309461275,12.12149409,82.499,82.461,2.45227184]
[1772309462296,12.12149409,82.499,82.463,2.45227184]
[1772309463274,12.12149409,82.499,82.465,2.45227184]
[1772309463694,15.70513204,82.48,82.457,2.45227184]
[1772309463893,1.93040294,82.489,82.457,2.45227184]
[1772309464086,15.70513204,82.5,82.461,2.45227184]
[1772309464291,60.59041351,82.522,82.458,12.12738606]
[1772309464292,1.92619389,82.519,82.471,2.45227184]
[1772309464492,1.92619389,82.534,82.48,15.70513204]
[1772309464801,14.32809659,82.549,82.521,2.45227184]
[1772309465184,2.21404257,82.549,82.523,2.45227184]
[1772309465496,12.11416388,82.548,82.523,2.45227184]
[1772309465994,2.21404257,82.549,82.523,2.45227184]
[1772309466198,14.32812267,82.549,82.523,2.45227184]
[1772309467100,2.53118095,82.548,82.502,12.12091828]
[1772309467305,2.53118095,82.546,82.502,12.12091828]
[1772309467600,2.53118095,82.546,82.51,15.70513204]
[1772309468182,2.21404257,82.549,82.51,15.70513204]
[1772309468399,2.21404257,82.549,82.52,15.70513204]
[1772309468603,2.21404257,82.549,82.51,15.70513204]
[1772309468900,2.21404257,82.549,82.52,15.70513204]
[1772309469108,2.53118095,82.568,82.531,2.45227184]
[1772309469281,14.64373076,82.559,82.531,2.45227184]
[1772309469589,2.53118095,82.559,82.532,12.11651238]
[1772309469786,14.64373076,82.559,82.532,12.11651238]
[1772309470296,2.53118095,82.559,82.532,12.11651238]
[1772309470501,2.53118095,82.559,82.533,2.45227184]
[1772309470998,2.53118095,82.569,82.533,2.45227184]
[1772309471332,2.53118095,82.568,82.535,2.45227184]
[1772309472305,12.11120162,82.569,82.529,2.45227184]
[1772309472306,2.53118095,82.559,82.529,2.45227184]
[1772309472710,2.53118095,82.559,82.531,2.45227184]
[1772309473607,2.53118095,82.559,82.528,12.11706542]
[1772309473786,12.11269652,82.558,82.504,2.45227184]
[1772309473989,2.53118095,82.566,82.531,2.45227184]
[1772309474406,2.53118095,82.576,82.541,2.45227184]
[1772309475400,2.53118095,82.575,82.541,2.45227184]
[1772309475906,15.70513204,82.58,82.543,2.45227184]
[1772309476098,15.70513204,82.57,82.543,2.45227184]
[1772309476407,2.53118095,82.579,82.543,2.45227184]
[1772309476604,2.62162238,82.569,82.532,2.56510745]
[1772309476806,2.62162238,82.569,82.534,2.56510745]
[1772309477110,2.62162238,82.577,82.541,2.56510745]
[1772309477987,12.11005619,82.576,82.543,2.56510745]
[1772309478188,2.62162238,82.569,82.535,2.56510745]
[1772309478612,2.62162238,82.569,82.517,30.29649095]
[1772309478613,2.62162238,82.577,82.551,2.56510745]
[1772309478809,2.62162238,82.589,82.551,2.56510745]
[1772309479310,12.1082966,82.588,82.551,2.56510745]
[1772309479516,3.69383402,82.602,82.518,1.2118568]
[1772309479517,30.26257889,82.611,82.571,2.56510745]
[1772309479692,2.62162238,82.616,82.581,2.56510745]
[1772309480008,2.62162238,82.607,82.573,2.56510745]
[1772309480392,2.62162238,82.607,82.57,15.70513204]
[1772309480692,2.62162238,82.607,82.556,2.56510745]
[1772309480693,2.62162238,82.582,82.556,2.56510745]
[1772309481206,2.62162238,82.589,82.556,2.56510745]
[1772309482198,2.62162238,82.587,82.557,12.11284324]
[1772309482402,15.70513204,82.59,82.558,2.56510745]
[1772309482592,2.62162238,82.598,82.561,2.56510745]
[1772309483494,2.62162238,82.598,82.542,60.57450236]
[1772309483495,2.62162238,82.579,82.545,2.56510745]
[1772309484090,2.62162238,82.595,82.56,15.70513204]
[1772309484297,14.72776236,82.603,82.561,2.56510745]
[1772309484914,2.62162238,82.599,82.561,2.56510745]
[1772309485321,2.62162238,82.589,82.553,2.56510745]
[1772309485912,2.62162238,82.599,82.553,2.56510745]
[1772309486113,60.5166177,82.622,82.52,1.21182743]
[1772309486114,12.10507258,82.61,82.573,2.56510745]
[1772309486302,27.81020462,82.61,82.573,2.56510745]
[1772309486629,15.70513204,82.61,82.573,2.56510745]
[1772309487005,2.62162238,82.613,82.581,2.56510745]
[1772309487207,2.62162238,82.609,82.571,2.56510745]
[1772309487540,2.62162238,82.609,82.572,2.56510745]
[1772309488024,2.62162238,82.609,82.571,42.38764248]
[1772309488025,2.62162238,82.618,82.581,2.56510745]
[1772309488214,2.62162238,82.616,82.583,2.56510745]
[1772309489427,2.62162238,82.632,82.601,2.56510745]
[1772309489610,2.62162238,82.629,82.601,2.56510745]
[1772309489815,2.62162238,82.639,82.601,2.56510745]
[1772309490130,2.62162238,82.637,82.602,2.56510745]
[1772309490637,2.62162238,82.629,82.596,12.10706094]
[1772309490808,42.35339673,82.638,82.591,14.67285102]
[1772309490809,15.69895661,82.62,82.591,14.67285102]
[1772309491806,2.62162238,82.609,82.571,2.56510745]
[1772309492106,2.62162238,82.609,82.581,12.10932296]
[1772309492414,15.69895661,82.62,82.582,2.56510745]
[1772309492415,2.62162238,82.617,82.582,2.56510745]
[1772309492816,2.62162238,82.615,82.582,2.56510745]
[1772309493441,2.62162238,82.627,82.582,2.56510745]
[1772309493618,15.69895661,82.62,82.582,2.56510745]
[1772309493820,2.62162238,82.619,82.582,2.56510745]
[1772309494252,2.62162238,82.617,82.584,2.56510745]
[1772309494447,15.69895661,82.61,82.575,2.56510745]
[1772309494648,15.69895661,82.61,82.568,30.2779484]
[1772309494649,2.62162238,82.617,82.581,2.56510745]
[1772309495526,2.62162238,82.615,82.581,2.56510745]
[1772309495720,2.62162238,82.615,82.583,2.56510745]
[1772309497023,2.62162238,82.589,82.557,2.56510745]
[1772309497227,2.62162238,82.589,82.554,2.56510745]
[1772309497661,15.69895661,82.62,82.545,2.56510745]
[1772309497662,2.62162238,82.579,82.545,2.56510745]
[1772309497947,2.62162238,82.579,82.541,2.56510745]
[1772309499249,2.62162238,82.569,82.541,2.56510745]
[1772309499626,2.62162238,82.569,82.543,2.56510745]
[1772309500330,2.62162238,82.577,82.543,2.56510745]
[1772309500531,12.10967339,82.579,82.543,2.56510745]
[1772309500847,12.10917543,82.583,82.551,2.56510745]
[1772309501224,15.69895661,82.6,82.561,2.56510745]
[1772309501431,2.62162238,82.599,82.561,2.56510745]
[1772309501625,15.69895661,82.59,82.561,2.56510745]
[1772309501853,2.62162238,82.592,82.562,2.56510745]
[1772309502046,2.62162238,82.592,82.563,2.56510745]
[1772309502230,12.10705532,82.597,82.563,2.56510745]
[1772309503239,14.7286777,82.597,82.563,2.56510745]
[1772309503630,2.62162238,82.596,82.563,2.56510745]
[1772309503831,2.62162238,82.579,82.547,2.56510745]
[1772309505051,2.44472974,82.577,82.547,2.56510745]
[1772309506247,15.69895661,82.57,82.549,2.58289792]
[1772309506634,2.44472974,82.577,82.549,2.58289792]
[1772309507237,12.11005619,82.576,82.549,2.58289792]
[1772309508253,2.44161822,82.569,82.517,2.39610867]
[1772309508450,2.44161822,82.559,82.52,15.69895661]
[1772309508650,2.44161822,82.579,82.541,2.39610867]
[1772309509533,27.80848737,82.58,82.541,2.39610867]
[1772309510332,30.25010559,82.58,82.541,2.39610867]
[1772309510735,30.25010559,82.58,82.543,2.39610867]
[1772309512733,2.44161822,82.579,82.545,2.39610867]
[1772309513052,2.44161822,82.569,82.544,12.11475092]
[1772309514054,2.44161822,82.569,82.544,14.51085959]
[1772309514641,2.44161822,82.569,82.545,2.39610867]
[1772309516140,15.69895661,82.58,82.547,2.39610867]
[1772309516337,27.80850193,82.58,82.547,2.39610867]
[1772309516959,2.44161822,82.579,82.547,2.39610867]
[1772309517946,27.80850193,82.58,82.549,2.39610867]
[1772309518142,30.25012015,82.58,82.549,2.39610867]
[1772309518453,2.44161822,82.579,82.549,2.39610867]
[1772309519958,2.44161822,82.577,82.549,2.39610867]
[1772309520155,2.44161822,82.577,82.537,2.39610867]
[1772309520355,42.38417011,82.578,82.521,45.28563529]
[1772309520356,2.44161822,82.559,82.523,2.39610867]
[1772309520671,2.44161822,82.532,82.493,2.39610867]
[1772309520838,18.14057483,82.54,82.501,2.39610867]
[1772309521241,18.14057483,82.53,82.501,2.39610867]
[1772309521462,2.44161822,82.529,82.493,2.39610867]
[1772309521663,2.44161822,82.519,82.49,0.2]
[1772309521863,2.44161822,82.519,82.492,2.39610867]
[1772309522043,12.11210968,82.562,82.511,2.39610867]
[1772309522243,2.44161822,82.559,82.521,2.39610867]
[1772309522465,2.44161822,82.568,82.531,2.39610867]
[1772309522663,2.44161822,82.576,82.541,2.39610867]
[1772309523543,2.44161822,82.569,82.531,2.39610867]
[1772309524261,2.44161822,82.567,82.533,2.39610867]
[1772309527562,2.44161822,82.565,82.535,2.39610867]
[1772309530771,2.44161822,82.565,82.534,12.11621877]
[1772309530772,2.44161822,82.565,82.537,2.39610867]
[1772309533070,2.44161822,82.563,82.538,12.11563158]
[1772309533263,15.69895661,82.56,82.539,2.39610867]
[1772309533652,2.44161822,82.559,82.532,14.51261458]
[1772309534253,2.44161822,82.559,82.532,2.39610867]
[1772309535363,2.44161822,82.559,82.532,14.51261808]
[1772309535574,2.44161822,82.557,82.532,14.51261808]
[1772309535773,2.44161822,82.607,82.551,2.39610867]
[1772309536074,2.44161822,82.607,82.532,42.40779036]
[1772309536075,2.44161822,82.606,82.571,2.39610867]
[1772309536472,3.69383402,82.623,82.532,42.40779036]
[1772309536473,2.53321593,82.613,82.581,2.55513005]
[1772309536771,14.63799284,82.613,82.581,2.55513005]
[1772309536971,2.53321593,82.612,82.581,2.55513005]
[1772309537483,2.53321593,82.599,82.56,18.25408666]
[1772309537655,2.53321593,82.599,82.57,15.69895661]
[1772309537856,2.53321593,82.599,82.571,2.55513005]
[1772309539573,2.53321593,82.599,82.572,14.66577288]
[1772309539775,15.69895661,82.59,82.533,2.55513005]
[1772309539959,2.53321593,82.579,82.541,2.55513005]
[1772309540356,60.52100633,82.616,82.533,12.11636557]
[1772309540357,18.23217254,82.61,82.571,2.55513005]
[1772309540555,2.53321593,82.61,82.581,2.55513005]
[1772309542058,2.53321593,82.61,82.583,2.55513005]
[1772309542059,12.10521855,82.609,82.583,2.55513005]
[1772309543670,12.10521855,82.609,82.585,2.55513005]
[1772309543868,2.53321593,82.611,82.585,2.55513005]
[1772309544557,12.10507202,82.61,82.585,2.55513005]
[1772309545158,2.53321593,82.611,82.585,2.55513005]
[1772309546366,14.63820762,82.611,82.586,12.10858983]
[1772309546561,2.53321593,82.609,82.571,2.55513005]
[1772309547357,2.53321593,82.599,82.572,2.55513005]
[1772309548371,2.53321593,82.606,82.574,2.55513005]
[1772309548660,12.10521855,82.609,82.574,2.55513005]
[1772309548860,14.63843448,82.609,82.574,2.55513005]
[1772309549266,2.53321593,82.608,82.574,2.55513005]
[1772309549877,12.10521855,82.609,82.574,2.55513005]
[1772309550069,18.23082993,82.63,82.591,2.55513005]
[1772309550264,2.53321593,82.629,82.591,2.55513005]
[1772309550777,15.697614,82.62,82.593,2.55513005]
[1772309551975,27.80123809,82.62,82.593,2.55513005]
[1772309552165,27.80123809,82.62,82.566,2.55513005]
[1772309552166,2.53321593,82.599,82.566,2.55513005]
[1772309552366,27.80123809,82.62,82.557,2.55513005]
[1772309552367,2.53321593,82.589,82.557,2.55513005]
[1772309553679,2.53321593,82.589,82.559,2.55513005]
[1772309553875,60.51803437,82.62,82.55,2.55513005]
[1772309553876,8.39619642,82.58,82.55,2.55513005]
[1772309554474,2.53321593,82.579,82.55,2.55513005]
[1772309554875,2.53321593,82.579,82.551,12.11372363]
[1772309555286,2.53321593,82.579,82.551,14.66885368]
[1772309555481,2.53321593,82.577,82.551,2.55513005]
[1772309556389,2.53321593,82.585,82.551,2.55513005]
[1772309556688,2.53321593,82.584,82.551,2.55513005]
[1772309556992,14.64224563,82.583,82.553,2.55513005]
[1772309558076,14.64224563,82.583,82.554,12.11328342]
[1772309558271,14.64224563,82.583,82.554,14.66841347]
[1772309558573,2.53321593,82.582,82.555,2.55513005]
[1772309560380,14.64253889,82.581,82.555,2.55513005]
[1772309560580,2.53321593,82.569,82.537,2.55513005]
[1772309560883,12.10932296,82.581,82.537,2.55513005]
[1772309560884,18.24074753,82.56,82.537,2.55513005]
[1772309561091,2.53321593,82.559,82.53,14.67191413]
[1772309561482,2.53321593,82.566,82.531,2.55513005]
[1772309562474,2.53321593,82.566,82.53,27.82431568]
[1772309562475,12.11166959,82.565,82.533,2.55513005]
[1772309563985,2.53321593,82.576,82.541,2.55513005]
[1772309564166,12.10998838,82.577,82.551,2.49908308]
[1772309564771,2.64057894,82.582,82.552,2.49908308]
[1772309565768,15.7075316,82.58,82.552,2.49908308]
[1772309567577,18.28862571,82.58,82.553,14.58076884]
[1772309567777,2.58109411,82.598,82.554,2.46733868]
[1772309568082,2.58109411,82.589,82.554,2.46733868]
[1772309569095,15.7075316,82.58,82.554,2.46733868]
[1772309569498,2.58109411,82.582,82.554,2.46733868]
[1772309569695,2.58109411,82.582,82.556,2.46733868]